fUST/lending_fUST_20240711
["ID","MTS","AMOUNT","RATE_DAILY","PERIOD"]
[331721758,1720696264173,-500.0,0.00029041,7]
[331721759,1720696264183,-500.0,0.00029041,7]
[331721760,1720696264193,-500.0,0.00029041,2]
[331721761,1720696264202,-1363.57,0.00029041,4]
[331721762,1720696264212,-578.11557591,0.00029041,2]
[331721763,1720696264221,-151.0,0.00029101,3]
[331721764,1720696264231,-153.0,0.0002926,2]
[331721765,1720696264240,-153.0,0.0002926,2]
[331721766,1720696264250,-153.0,0.0002926,2]
[331721767,1720696264260,-153.0,0.0002926,2]
[331721768,1720696264270,-153.0,0.0002926,2]
[331721769,1720696264280,-500.0,0.00029315,7]
[331721770,1720696264293,-500.0,0.00029315,7]
[331721771,1720696264303,-500.0,0.00029315,7]
[331721772,1720696264313,-500.0,0.00029315,7]
[331721773,1720696264324,-500.0,0.00029315,7]
[331721774,1720696264334,-500.65,0.00029315,7]
[331721775,1720696264343,-518.09,0.00029315,7]
[331721776,1720696264354,-500.0,0.00029315,7]
[331721777,1720696264365,-270.66616015,0.00029315,7]
[331721778,1720696264377,-489.20309489,0.00029315,7]
[331721779,1720696264387,-500.0,0.00029315,7]
[331721780,1720696264396,-649.47,0.00029315,7]
[331721781,1720696264406,-865.95,0.00029315,7]
[331721782,1720696264415,-4454.34,0.00029315,7]
[331721783,1720696264424,-500.0,0.00029315,7]
[331721784,1720696264437,-500.0,0.00029315,7]
[331721785,1720696264447,-1578.77,0.00029315,7]
[331721786,1720696264457,-634.34,0.00029315,7]
[331721787,1720696264466,-714.35,0.00029315,7]
[331721788,1720696264477,-577.65,0.00029315,7]
[331721789,1720696264487,-1071.09,0.00029315,7]
[331721790,1720696264497,-500.0,0.00029315,7]
[331721791,1720696264507,-500.0,0.00029315,7]
[331721792,1720696264518,-824.72,0.00029315,7]
[331721793,1720696264527,-566.53,0.00029315,7]
[331721794,1720696264538,-500.0,0.00029315,7]
[331721795,1720696264549,-533.15,0.00029315,7]
[331721796,1720696264558,-521.02,0.00029315,7]
[331721797,1720696264570,-615.73,0.00029315,7]
[331721798,1720696264580,-500.0,0.00029315,7]
[331721799,1720696264589,-500.0,0.00029315,7]
[331721800,1720696264598,-2584.64,0.00029315,7]
[331721801,1720696264607,-1397.22,0.00029315,7]
[331721802,1720696264617,-500.0,0.00029315,7]
[331721803,1720696264627,-500.0,0.00029315,7]
[331721804,1720696264636,-1003.12,0.00029315,2]
[331721805,1720696264646,-500.0,0.00029315,7]
[331721806,1720696264656,-1241.41,0.00029315,7]
[331721807,1720696264666,-2406.75,0.00029315,7]
[331721808,1720696264676,-500.0,0.00029315,7]
[331721809,1720696264686,-580.83,0.00029315,7]
[331721810,1720696264695,-769.94,0.00029315,7]
[331721811,1720696264706,-5908.86,0.00029315,7]
[331721812,1720696264715,-500.0,0.00029315,7]
[331721813,1720696264726,-500.0,0.00029315,7]
[331721814,1720696264736,-500.0,0.00029315,7]
[331721815,1720696264746,-500.0,0.00029315,2]
[331721816,1720696264756,-500.0,0.00029315,7]
[331721817,1720696264765,-500.0,0.00029315,7]
[331721818,1720696264776,-500.0,0.00029315,2]
[331721819,1720696264786,-1363.57,0.00029315,4]
[331721820,1720696264795,-306.0,0.00029397,2]
[331721821,1720696264805,-153.0,0.00029397,2]
[331721822,1720696264814,-153.0,0.00029397,2]
[331721823,1720696264823,-153.0,0.00029397,2]
[331721824,1720696264884,-153.0,0.00029397,2]
[331721825,1720696264894,-160.0,0.0002947,3]
[331721826,1720696264904,-150.0,0.00029529,2]
[331721827,1720696264913,-150.0,0.00029562,2]
[331721828,1720696264923,-153.0,0.00029562,2]
[331721829,1720696264932,-150.0,0.00029587,2]
[331721830,1720696264941,-150.0,0.00029587,2]
[331721831,1720696264951,-178.707988,0.00029589,7]
[331721832,1720696264961,-500.0,0.00029589,7]
[331721833,1720696264970,-623.20445111,0.00029589,7]
[331721834,1720696264980,-500.0,0.00029589,7]
[331721835,1720696264989,-181.008108,0.00029589,7]
[331721836,1720696264999,-181.008108,0.00029589,7]
[331721837,1720696265009,-500.0,0.00029589,7]
[331721838,1720696265020,-500.0,0.00029589,7]
[331721839,1720696265030,-500.65,0.00029589,7]
[331721840,1720696265039,-518.09,0.00029589,7]
[331721841,1720696265049,-500.0,0.00029589,7]
[331721842,1720696265059,-500.0,0.00029589,7]
[331721843,1720696265069,-649.47,0.00029589,7]
[331721844,1720696265080,-865.95,0.00029589,7]
[331721845,1720696265090,-4454.34,0.00029589,7]
[331721846,1720696265100,-500.0,0.00029589,7]
[331721847,1720696265110,-500.0,0.00029589,7]
[331721848,1720696265119,-1578.77,0.00029589,7]
[331721849,1720696265129,-151.0,0.00029589,7]
[331721850,1720696265138,-634.34,0.00029589,7]
[331721851,1720696265148,-714.35,0.00029589,7]
[331721852,1720696265158,-577.65,0.00029589,7]
[331721853,1720696265167,-1071.09,0.00029589,7]
[331721854,1720696265177,-500.0,0.00029589,7]
[331721855,1720696265187,-500.0,0.00029589,7]
[331721856,1720696265196,-824.72,0.00029589,7]
[331721857,1720696265206,-151.0,0.00029589,7]
[331721858,1720696265216,-566.53,0.00029589,7]
[331721859,1720696265225,-500.0,0.00029589,7]
[331721860,1720696265234,-533.15,0.00029589,7]
[331721861,1720696265244,-521.02,0.00029589,7]
[331721862,1720696265253,-194.613845,0.00029589,7]
[331721863,1720696265262,-194.613845,0.00029589,7]
[331721864,1720696265272,-615.73,0.00029589,7]
[331721865,1720696265282,-151.0,0.00029589,7]
[331721866,1720696265292,-161.18089,0.00029589,7]
[331721867,1720696265307,-161.18089,0.00029589,7]
[331721868,1720696265318,-151.0,0.00029589,7]
[331721869,1720696265328,-2116.465711,0.00029589,7]
[331721870,1720696265339,-500.0,0.00029589,7]
[331721871,1720696265348,-2116.465711,0.00029589,7]
[331721872,1720696265358,-182.989071,0.00029589,7]
[331721873,1720696265369,-151.0,0.00029589,7]
[331721874,1720696265379,-182.989067,0.00029589,7]
[331721875,1720696265389,-500.0,0.00029589,7]
[331721876,1720696265398,-2584.64,0.00029589,7]
[331721877,1720696265407,-1397.22,0.00029589,7]
[331721878,1720696265416,-500.0,0.00029589,7]
[331721879,1720696265426,-500.0,0.00029589,7]
[331721880,1720696265435,-1003.12,0.00029589,2]
[331721881,1720696265445,-166.29271851,0.00029589,7]
[331721882,1720696265454,-468.026029,0.00029589,7]
[331721883,1720696265463,-468.026025,0.00029589,7]
[331721884,1720696265475,-707.273885,0.00029589,7]
[331721885,1720696265486,-1241.41,0.00029589,7]
[331721886,1720696265495,-2406.75,0.00029589,7]
[331721887,1720696265506,-676.11548,0.00029589,7]
[331721888,1720696265517,-707.27388708,0.00029589,7]
[331721889,1720696265527,-566.53666158,0.00029589,7]
[331721890,1720696265537,-676.115485,0.00029589,7]
[331721891,1720696265546,-580.83,0.00029589,7]
[331721892,1720696265556,-769.94,0.00029589,7]
[331721893,1720696265566,-5908.86,0.00029589,7]
[331721894,1720696265575,-500.0,0.00029589,7]
[331721895,1720696265584,-500.0,0.00029589,7]
[331721896,1720696265594,-790.245557,0.00029589,7]
[331721897,1720696265604,-790.245565,0.00029589,7]
[331721898,1720696265613,-435.748526,0.00029589,7]
[331721899,1720696265623,-500.0,0.00029589,7]
[331721900,1720696265632,-585.28300967,0.00029589,2]
[331721901,1720696265642,-435.748536,0.00029589,7]
[331721902,1720696265652,-500.0,0.00029589,7]
[331721903,1720696265661,-500.0,0.00029589,7]
[331721904,1720696265670,-500.0,0.00029589,2]
[331721905,1720696265680,-779.427854,0.00029589,2]
[331721906,1720696265689,-1363.57,0.00029589,4]
[331721907,1720696265698,-779.427859,0.00029589,2]
[331721908,1720696265708,-2557.142157,0.00029589,7]
[331721909,1720696265717,-153.0,0.00029616,2]
[331721910,1720696265727,-151.0,0.00029729,3]
[331721911,1720696265737,-181.673412,0.00029776,7]
[331721912,1720696265746,-181.673412,0.00029776,7]
[331721913,1720696265756,-249.67315643,0.000298,120]
[331721914,1720696265765,-620.0,0.00029809,2]
[331721915,1720696265775,-151.0,0.00029809,7]
[331721916,1720696265785,-178.707988,0.00029823,7]
[331721917,1720696265794,-1613.0,0.00029846,2]
[331721918,1720696265803,-500.0,0.00029863,7]
[331721919,1720696265813,-500.0,0.00029863,7]
[331721920,1720696265822,-181.008108,0.00029863,7]
[331721921,1720696265831,-181.008108,0.00029863,7]
[331721922,1720696265841,-500.0,0.00029863,7]
[331721923,1720696265898,-500.0,0.00029863,7]
[331721924,1720696265907,-500.65,0.00029863,7]
[331721925,1720696265917,-518.09,0.00029863,7]
[331721926,1720696265929,-232.2031724,0.00029863,7]
[331721927,1720696265941,-500.0,0.00029863,7]
[331721928,1720696265952,-649.47,0.00029863,7]
[331721929,1720696265962,-865.95,0.00029863,7]
[331721930,1720696265972,-4454.34,0.00029863,7]
[331721931,1720696265983,-500.0,0.00029863,7]
[331721932,1720696265993,-1578.77,0.00029863,7]
[331721933,1720696266003,-634.34,0.00029863,7]
[331721934,1720696266012,-714.35,0.00029863,7]
[331721935,1720696266023,-577.65,0.00029863,7]
[331721936,1720696266033,-1071.09,0.00029863,7]
[331721937,1720696266043,-500.0,0.00029863,7]
[331721938,1720696266055,-500.0,0.00029863,7]
[331721939,1720696266064,-824.72,0.00029863,7]
[331721940,1720696266074,-566.53,0.00029863,7]
[331721941,1720696266084,-500.0,0.00029863,7]
[331721942,1720696266096,-533.15,0.00029863,7]
[331721943,1720696266105,-521.02,0.00029863,7]
[331721944,1720696266117,-615.73,0.00029863,7]
[331721945,1720696266127,-500.0,0.00029863,7]
[331721946,1720696266136,-506.75155593,0.00029863,7]
[331721947,1720696266145,-2584.64,0.00029863,7]
[331721948,1720696266155,-1397.22,0.00029863,7]
[331721949,1720696266164,-500.0,0.00029863,7]
[331721950,1720696266173,-500.0,0.00029863,7]
[331721951,1720696266183,-1003.12,0.00029863,2]
[331721952,1720696266193,-1241.41,0.00029863,7]
[331721953,1720696266203,-2406.75,0.00029863,7]
[331721954,1720696266212,-580.83,0.00029863,7]
[331721955,1720696266222,-769.94,0.00029863,7]
[331721956,1720696266232,-5908.86,0.00029863,7]
[331721957,1720696266241,-500.0,0.00029863,7]
[331721958,1720696266250,-500.0,0.00029863,7]
[331721959,1720696266260,-500.0,0.00029863,7]
[331721960,1720696266271,-500.0,0.00029863,7]
[331721961,1720696266281,-500.0,0.00029863,7]
[331721962,1720696266291,-500.0,0.00029863,2]
[331721963,1720696266304,-1363.57,0.00029863,4]
[331721964,1720696266313,-634.89106997,0.000299,15]
[331721965,1720696266323,-153.0,0.00029945,2]
[331721966,1720696266336,-170.51355908,0.0003,4]
[331721967,1720696266346,-500.0,0.0003,2]
[331721968,1720696266362,-8677.91579166,0.0003,5]
[331721969,1720696266382,-1000.0,0.0003,30]
[331721970,1720696266399,-1153.89206966,0.0003,2]
[331721971,1720696266417,-643.7802781,0.0003,4]
[331721972,1720696266436,-471.75108286,0.0003,4]
[331721973,1720696266454,-154.57491897,0.0003,4]
[331721974,1720696266471,-236.97039042,0.0003,4]
[331721975,1720696266484,-1639.45958939,0.0003,4]
[331721976,1720696266504,-307.18800905,0.0003,30]
[331721977,1720696266528,-222.0,0.0003,2]
[331721978,1720696266543,-270.75944258,0.0003,2]
[331721979,1720696266559,-306.6092778,0.00030082,2]
[331721980,1720696266574,-500.0,0.00030136,7]
[331721981,1720696266591,-500.0,0.00030136,7]
[331721982,1720696266605,-500.0,0.00030136,7]
[331721983,1720696266618,-500.0,0.00030136,7]
[331721984,1720696266632,-500.65,0.00030136,7]
[331721985,1720696266646,-518.09,0.00030136,7]
[331721986,1720696266660,-500.0,0.00030136,7]
[331721987,1720696266673,-649.47,0.00030136,7]
[331721988,1720696266688,-865.95,0.00030136,7]
[331721989,1720696266701,-4454.34,0.00030136,7]
[331721990,1720696266715,-500.0,0.00030136,7]
[331721991,1720696266728,-1578.77,0.00030136,7]
[331721992,1720696266743,-634.34,0.00030136,7]
[331721993,1720696266755,-714.35,0.00030136,7]
[331721994,1720696266769,-577.65,0.00030136,7]
[331721995,1720696266783,-1071.09,0.00030136,7]
[331721996,1720696266798,-500.0,0.00030136,7]
[331721997,1720696266813,-500.0,0.00030136,7]
[331721998,1720696266828,-824.72,0.00030136,7]
[331721999,1720696266843,-566.53,0.00030136,7]
[331722000,1720696266858,-500.0,0.00030136,7]
[331722001,1720696266874,-533.15,0.00030136,7]
[331722002,1720696266888,-521.02,0.00030136,7]
[331722003,1720696266902,-194.613845,0.00030136,7]
[331722004,1720696266916,-194.613846,0.00030136,7]
[331722005,1720696266929,-615.73,0.00030136,7]
[331722006,1720696266946,-151.0,0.00030136,7]
[331722007,1720696266963,-161.18089,0.00030136,7]
[331722008,1720696266977,-161.180895,0.00030136,7]
[331722009,1720696266993,-2116.465711,0.00030136,7]
[331722010,1720696267007,-500.0,0.00030136,7]
[331722011,1720696267024,-2116.465707,0.00030136,7]
[331722012,1720696267039,-2584.64,0.00030136,7]
[331722013,1720696267055,-1397.22,0.00030136,7]
[331722014,1720696267153,-294.92879694,0.00030136,7]
[331722015,1720696267162,-500.0,0.00030136,7]
[331722016,1720696267172,-1003.12,0.00030136,2]
[331722017,1720696267182,-1241.41,0.00030136,7]
[331722018,1720696267191,-2406.75,0.00030136,7]
[331722019,1720696267201,-580.83,0.00030136,7]
[331722020,1720696267213,-769.94,0.00030136,7]
[331722021,1720696267224,-5908.86,0.00030136,7]
[331722022,1720696267233,-500.0,0.00030136,7]
[331722023,1720696267244,-500.0,0.00030136,7]
[331722024,1720696267256,-500.0,0.00030136,7]
[331722025,1720696267267,-500.0,0.00030136,7]
[331722026,1720696267278,-500.0,0.00030136,7]
[331722027,1720696267287,-500.0,0.00030136,2]
[331722028,1720696267300,-1363.57,0.00030136,4]
[331722029,1720696267309,-600.0,0.00030246,2]
[331722030,1720696267319,-151.0,0.00030358,3]
[331722031,1720696267329,-5612.49349945,0.0003041,4]
[331722032,1720696267339,-284.63680701,0.0003041,3]
[331722033,1720696267350,-178.53927687,0.0003041,7]
[331722034,1720696267359,-178.707991,0.0003041,7]
[331722035,1720696267369,-500.0,0.0003041,7]
[331722036,1720696267379,-599.9261427,0.0003041,7]
[331722037,1720696267389,-181.008108,0.0003041,7]
[331722038,1720696267399,-181.008108,0.0003041,7]
[331722039,1720696267408,-500.0,0.0003041,7]
[331722040,1720696267417,-500.0,0.0003041,7]
[331722041,1720696267427,-500.65,0.0003041,7]
[331722042,1720696267436,-518.09,0.0003041,7]
[331722043,1720696267447,-471.96438386,0.0003041,7]
[331722044,1720696267458,-649.47,0.0003041,7]
[331722045,1720696267468,-181.673412,0.0003041,7]
[331722046,1720696267479,-181.673413,0.0003041,7]
[331722047,1720696267489,-169.431542,0.0003041,7]
[331722048,1720696267499,-865.95,0.0003041,7]
[331722049,1720696267509,-4454.34,0.0003041,7]
[331722050,1720696267520,-500.0,0.0003041,7]
[331722051,1720696267529,-1578.77,0.0003041,7]
[331722052,1720696267538,-634.34,0.0003041,7]
[331722053,1720696267547,-714.35,0.0003041,7]
[331722054,1720696267556,-577.65,0.0003041,7]
[331722055,1720696267566,-1071.09,0.0003041,7]
[331722056,1720696267575,-500.0,0.0003041,7]
[331722057,1720696267587,-500.0,0.0003041,7]
[331722058,1720696267598,-824.72,0.0003041,7]
[331722059,1720696267609,-566.53,0.0003041,7]
[331722060,1720696267619,-500.0,0.0003041,7]
[331722061,1720696267631,-533.15,0.0003041,7]
[331722062,1720696267641,-521.02,0.0003041,7]
[331722063,1720696267650,-615.73,0.0003041,7]
[331722064,1720696267662,-500.0,0.0003041,7]
[331722065,1720696267671,-2584.64,0.0003041,7]
[331722066,1720696267681,-1397.22,0.0003041,7]
[331722067,1720696267692,-500.0,0.0003041,7]
[331722068,1720696267703,-1003.12,0.0003041,2]
[331722069,1720696267715,-1241.41,0.0003041,7]
[331722070,1720696267726,-2406.75,0.0003041,7]
[331722071,1720696267737,-580.83,0.0003041,7]
[331722072,1720696267749,-769.94,0.0003041,7]
[331722073,1720696267760,-5908.86,0.0003041,7]
[331722074,1720696267771,-500.0,0.0003041,7]
[331722075,1720696267782,-500.0,0.0003041,7]
[331722076,1720696267791,-500.0,0.0003041,7]
[331722077,1720696267801,-500.0,0.0003041,7]
[331722078,1720696267812,-500.0,0.0003041,7]
[331722079,1720696267822,-500.0,0.0003041,2]
[331722080,1720696267831,-1363.57,0.0003041,4]
[331722081,1720696267840,-160.0,0.00030415,4]
[331722082,1720696267850,-153.0,0.00030438,2]
[331722083,1720696267859,-153.0,0.00030438,2]
[331722084,1720696267869,-153.0,0.00030438,2]
[331722085,1720696267878,-153.0,0.00030438,2]
[331722086,1720696267887,-153.0,0.00030438,2]
[331722087,1720696267897,-153.0,0.00030438,2]
[331722088,1720696267907,-153.0,0.00030438,2]
[331722089,1720696267917,-153.0,0.00030438,2]
[331722090,1720696267927,-150.0,0.00030529,2]
[331722091,1720696267936,-820.30685096,0.00030561,2]
[331722092,1720696267946,-500.0,0.00030684,7]
[331722093,1720696267955,-500.0,0.00030684,7]
[331722094,1720696267966,-500.0,0.00030684,7]
[331722095,1720696267977,-500.65,0.00030684,7]
[331722096,1720696267988,-518.09,0.00030684,7]
[331722097,1720696267999,-649.47,0.00030684,7]
[331722098,1720696268008,-865.95,0.00030684,7]
[331722099,1720696268018,-4454.34,0.00030684,7]
[331722100,1720696268030,-500.0,0.00030684,7]
[331722101,1720696268039,-1578.77,0.00030684,7]
[331722102,1720696268051,-634.34,0.00030684,7]
[331722103,1720696268060,-714.35,0.00030684,7]
[331722104,1720696268069,-577.65,0.00030684,7]
[331722105,1720696268079,-1071.09,0.00030684,7]
[331722106,1720696268089,-195.67355835,0.00030684,7]
[331722107,1720696268098,-500.0,0.00030684,7]
[331722108,1720696268107,-824.72,0.00030684,7]
[331722109,1720696268117,-566.53,0.00030684,7]
[331722110,1720696268127,-500.0,0.00030684,7]
[331722111,1720696268136,-533.15,0.00030684,7]
[331722112,1720696268146,-521.02,0.00030684,7]
[331722113,1720696268155,-615.73,0.00030684,7]
[331722114,1720696268165,-500.0,0.00030684,7]
[331722115,1720696268175,-2584.64,0.00030684,7]
[331722116,1720696268184,-1397.22,0.00030684,7]
[331722117,1720696268193,-500.0,0.00030684,7]
[331722118,1720696268203,-1003.12,0.00030684,2]
[331722119,1720696268213,-1241.41,0.00030684,7]
[331722120,1720696268223,-2406.75,0.00030684,7]
[331722121,1720696268232,-580.83,0.00030684,7]
[331722122,1720696268242,-769.94,0.00030684,7]
[331722123,1720696268252,-5908.86,0.00030684,7]
[331722124,1720696268262,-500.0,0.00030684,7]
[331722125,1720696268273,-500.0,0.00030684,7]
[331722126,1720696268283,-500.0,0.00030684,7]
[331722127,1720696268294,-500.0,0.00030684,7]
[331722128,1720696268306,-500.0,0.00030684,7]
[331722129,1720696268316,-500.0,0.00030684,2]
[331722130,1720696268326,-1363.57,0.00030684,4]
[331722131,1720696268337,-454.90849988,0.00030774,2]
[331722132,1720696268349,-150.0,0.00030783,4]
[331722133,1720696268359,-378.82348152,0.00030958,7]
[331722134,1720696268431,-500.0,0.00030958,7]
[331722135,1720696268441,-500.0,0.00030958,7]
[331722136,1720696268451,-500.65,0.00030958,7]
[331722137,1720696268461,-518.09,0.00030958,7]
[331722138,1720696268471,-649.47,0.00030958,7]
[331722139,1720696268482,-865.95,0.00030958,7]
[331722140,1720696268492,-4454.34,0.00030958,7]
[331722141,1720696268502,-500.0,0.00030958,7]
[331722142,1720696268511,-1578.77,0.00030958,7]
[331722143,1720696268521,-634.34,0.00030958,7]
[331722144,1720696268532,-714.35,0.00030958,7]
[331722145,1720696268542,-577.65,0.00030958,7]
[331722146,1720696268552,-1071.09,0.00030958,7]
[331722147,1720696268561,-500.0,0.00030958,7]
[331722148,1720696268571,-824.72,0.00030958,7]
[331722149,1720696268581,-566.53,0.00030958,7]
[331722150,1720696268591,-500.0,0.00030958,7]
[331722151,1720696268600,-533.15,0.00030958,7]
[331722152,1720696268610,-521.02,0.00030958,7]
[331722153,1720696268620,-615.73,0.00030958,7]
[331722154,1720696268630,-257.08647543,0.00030958,7]
[331722155,1720696268641,-2584.64,0.00030958,7]
[331722156,1720696268650,-1397.22,0.00030958,7]
[331722157,1720696268660,-500.0,0.00030958,7]
[331722158,1720696268669,-1003.12,0.00030958,2]
[331722159,1720696268679,-1241.41,0.00030958,7]
[331722160,1720696268689,-2406.75,0.00030958,7]
[331722161,1720696268699,-580.83,0.00030958,7]
[331722162,1720696268709,-769.94,0.00030958,7]
[331722163,1720696268718,-5908.86,0.00030958,7]
[331722164,1720696268728,-500.0,0.00030958,7]
[331722165,1720696268738,-500.0,0.00030958,7]
[331722166,1720696268748,-500.0,0.00030958,7]
[331722167,1720696268759,-500.0,0.00030958,7]
[331722168,1720696268770,-500.0,0.00030958,7]
[331722169,1720696268780,-500.0,0.00030958,2]
[331722170,1720696268790,-1363.57,0.00030958,4]
[331722171,1720696268800,-151.0,0.00030986,4]
[331722172,1720696268809,-510.75595914,0.00031,2]
[331722173,1720696268819,-2561.89,0.00031,2]
[331722174,1720696268828,-500.0,0.00031232,7]
[331722175,1720696268838,-393.21521139,0.00031232,7]
[331722176,1720696268847,-500.65,0.00031232,7]
[331722177,1720696268856,-518.09,0.00031232,7]
[331722178,1720696268866,-649.47,0.00031232,7]
[331722179,1720696268876,-865.95,0.00031232,7]
[331722180,1720696268886,-4454.34,0.00031232,7]
[331722181,1720696268896,-256.07431132,0.00031232,7]
[331722182,1720696268906,-1578.77,0.00031232,7]
[331722183,1720696268917,-634.34,0.00031232,7]
[331722184,1720696268927,-714.35,0.00031232,7]
[331722185,1720696268936,-577.65,0.00031232,7]
[331722186,1720696268947,-1071.09,0.00031232,7]
[331722187,1720696268957,-500.0,0.00031232,7]
[331722188,1720696268968,-824.72,0.00031232,7]
[331722189,1720696268977,-566.53,0.00031232,7]
[331722190,1720696268987,-500.0,0.00031232,7]
[331722191,1720696268997,-533.15,0.00031232,7]
[331722192,1720696269007,-521.02,0.00031232,7]
[331722193,1720696269017,-615.73,0.00031232,7]
[331722194,1720696269028,-2584.64,0.00031232,7]
[331722195,1720696269038,-1397.22,0.00031232,7]
[331722196,1720696269047,-500.0,0.00031232,7]
[331722197,1720696269057,-1003.12,0.00031232,2]
[331722198,1720696269068,-1241.41,0.00031232,7]
[331722199,1720696269079,-2406.75,0.00031232,7]
[331722200,1720696269089,-580.83,0.00031232,7]
[331722201,1720696269099,-769.94,0.00031232,7]
[331722202,1720696269109,-5908.86,0.00031232,7]
[331722203,1720696269118,-500.0,0.00031232,7]
[331722204,1720696269129,-500.0,0.00031232,7]
[331722205,1720696269139,-500.0,0.00031232,7]
[331722206,1720696269149,-500.0,0.00031232,7]
[331722207,1720696269160,-500.0,0.00031232,7]
[331722208,1720696269170,-500.0,0.00031232,2]
[331722209,1720696269180,-1363.57,0.00031232,4]
[331722210,1720696269190,-620.0,0.000313,2]
[331722211,1720696269199,-160.0,0.0003136,5]
[331722212,1720696269209,-5064.90830628,0.00031429,2]
[331722213,1720696269220,-150.0,0.00031473,2]
[331722214,1720696269229,-503.0,0.00031473,2]
[331722215,1720696269238,-500.0,0.00031506,7]
[331722216,1720696269248,-500.65,0.00031506,7]
[331722217,1720696269258,-518.09,0.00031506,7]
[331722218,1720696269267,-500.0,0.00031506,2]
[331722219,1720696269277,-500.0,0.00031506,2]
[331722220,1720696269287,-500.0,0.00031506,2]
[331722221,1720696269300,-489.70051253,0.00031506,2]
[331722222,1720696269310,-649.47,0.00031506,7]
[331722223,1720696269319,-865.95,0.00031506,7]
[331722224,1720696269329,-4454.34,0.00031506,7]
[331722225,1720696269339,-1578.77,0.00031506,7]
[331722226,1720696269349,-634.34,0.00031506,7]
[331722227,1720696269359,-714.35,0.00031506,7]
[331722228,1720696269369,-577.65,0.00031506,7]
[331722229,1720696269380,-1071.09,0.00031506,7]
[331722230,1720696269389,-500.0,0.00031506,7]
[331722231,1720696269400,-824.72,0.00031506,7]
[331722232,1720696269409,-566.53,0.00031506,7]
[331722233,1720696269419,-500.0,0.00031506,7]
[331722234,1720696269429,-533.15,0.00031506,7]
[331722235,1720696269439,-521.02,0.00031506,7]
[331722236,1720696269449,-615.73,0.00031506,7]
[331722237,1720696269459,-2584.64,0.00031506,7]
[331722238,1720696269470,-1397.22,0.00031506,7]
[331722239,1720696269480,-500.0,0.00031506,7]
[331722240,1720696269490,-1003.12,0.00031506,2]
[331722241,1720696269501,-1241.41,0.00031506,7]
[331722242,1720696269511,-2406.75,0.00031506,7]
[331722243,1720696269523,-580.83,0.00031506,7]
[331722244,1720696269533,-769.94,0.00031506,7]
[331722245,1720696269602,-5908.86,0.00031506,7]
[331722246,1720696269613,-500.0,0.00031506,7]
[331722247,1720696269622,-500.0,0.00031506,7]
[331722248,1720696269632,-500.0,0.00031506,7]
[331722249,1720696269642,-500.0,0.00031506,7]
[331722250,1720696269652,-500.0,0.00031506,7]
[331722251,1720696269662,-500.0,0.00031506,2]
[331722252,1720696269671,-1363.57,0.00031506,4]
[331722253,1720696269681,-150.0,0.00031529,2]
[331722254,1720696269690,-4200.0,0.00031577,2]
[331722255,1720696269699,-368.8382053,0.00031589,2]
[331722256,1720696269709,-153.0,0.00031589,2]
[331722257,1720696269718,-153.0,0.00031589,2]